fUST/lending_fUST_20250804
["ID","MTS","AMOUNT","RATE_DAILY","PERIOD"]
[377188475,1754274647257,-924.63,0.00049315,120]
[377188476,1754274647266,-460.0,0.00049315,120]
[377188477,1754274647276,-500.0,0.00049315,120]
[377188478,1754274647285,-2209.26,0.00049315,120]
[377188479,1754274647295,-507.11,0.00049315,120]
[377188480,1754274647304,-151.0,0.00049315,120]
[377188481,1754274647313,-463.79538458,0.00049315,120]
[377188482,1754274647322,-460.0,0.00049315,120]
[377188483,1754274647331,-460.0,0.00049315,2]
[377188484,1754274647340,-460.0,0.00049315,120]
[377188485,1754274647349,-2199.34,0.00049315,120]
[377188486,1754274647358,-151.30865764,0.00049315,120]
[377188487,1754274647367,-465.43580173,0.00049315,120]
[377188488,1754274647377,-460.0,0.00049315,120]
[377188489,1754274647386,-464.84933769,0.00049315,120]
[377188490,1754274647395,-460.0,0.00049315,120]
[377188491,1754274647404,-462.25225395,0.00049315,120]
[377188492,1754274647414,-9666.87,0.00049315,120]
[377188493,1754274647423,-460.0,0.00049315,120]
[377188494,1754274647433,-460.0,0.00049315,120]
[377188495,1754274647442,-460.0,0.00049315,120]
[377188496,1754274647451,-462.62792435,0.00049315,120]
[377188497,1754274647461,-500.0,0.00049315,120]
[377188498,1754274647471,-460.0,0.00049315,120]
[377188499,1754274647481,-500.0,0.00049315,120]
[377188500,1754274647490,-500.0,0.00049315,120]
[377188501,1754274647499,-500.0,0.00049373,10]
[377188502,1754274647508,-202.31898765,0.00049373,10]
[377188503,1754274647518,-500.0,0.00049373,10]
[377188504,1754274647527,-500.0,0.00049373,10]
[377188505,1754274647536,-500.0,0.00049373,10]
[377188506,1754274647545,-500.0,0.00049373,10]
[377188507,1754274647555,-500.80457672,0.00049373,10]
[377188508,1754274647564,-503.10354664,0.00049373,10]
[377188509,1754274647574,-501.90276931,0.00049373,10]
[377188510,1754274647589,-150.0,0.00049373,10]
[377188511,1754274647598,-500.0,0.00049373,10]
[377188512,1754274647607,-500.0,0.00049373,2]
[377188513,1754274647616,-280.82773757,0.00049373,10]
[377188514,1754274647625,-501.83360639,0.00049373,10]
[377188515,1754274647634,-500.0,0.00049373,10]
[377188516,1754274647644,-502.01813718,0.00049373,10]
[377188517,1754274647653,-501.29702549,0.00049373,10]
[377188518,1754274647662,-500.0,0.00049373,10]
[377188519,1754274647674,-500.0,0.00049373,10]
[377188520,1754274647684,-644.42445352,0.00049373,10]
[377188521,1754274647693,-500.0,0.00049373,10]
[377188522,1754274647703,-508.91079915,0.00049373,10]
[377188523,1754274647712,-500.0,0.00049373,10]
[377188524,1754274647721,-501.97470167,0.00049373,10]
[377188525,1754274647731,-500.0,0.00049373,10]
[377188526,1754274647740,-592.83316314,0.00049373,10]
[377188527,1754274647749,-502.39503866,0.00049373,2]
[377188528,1754274647758,-500.0,0.00049373,10]
[377188529,1754274647768,-638.77803454,0.00049373,10]
[377188530,1754274647777,-20179.55,0.000494,14]
[377188531,1754274647786,-4359.68,0.000494,14]
[377188532,1754274647796,-447.1,0.000494,14]
[377188533,1754274647806,-216.36857094,0.000494,10]
[377188534,1754274647816,-151.0,0.000494,120]
[377188535,1754274647829,-2033.07,0.000494,7]
[377188536,1754274647838,-527.23761927,0.000494,10]
[377188537,1754274647847,-250.75,0.00049402,14]
[377188538,1754274647857,-6040.48,0.00049449,120]
[377188539,1754274647867,-1000.0,0.000495,120]
[377188540,1754274647876,-151.0,0.000495,27]
[377188541,1754274647886,-151.0,0.000495,25]
[377188542,1754274647895,-151.0,0.000495,22]
[377188543,1754274647905,-521.1,0.00049501,120]
[377188544,1754274647914,-1000.0,0.00049561,10]
[377188545,1754274647923,-1000.0,0.00049561,10]
[377188546,1754274647933,-1000.0,0.00049561,10]
[377188547,1754274647942,-1000.0,0.00049561,10]
[377188548,1754274647952,-1000.0,0.00049561,10]
[377188549,1754274647961,-1000.0,0.00049561,10]
[377188550,1754274647970,-1000.0,0.00049561,10]
[377188551,1754274647979,-1000.0,0.00049561,10]
[377188552,1754274647989,-1000.0,0.00049561,10]
[377188553,1754274647998,-1000.0,0.00049561,10]
[377188554,1754274648008,-1000.0,0.00049561,10]
[377188555,1754274648017,-1000.0,0.00049561,10]
[377188556,1754274648026,-1000.0,0.00049561,10]
[377188557,1754274648035,-1000.0,0.00049561,10]
[377188558,1754274648045,-1000.0,0.00049561,10]
[377188559,1754274648055,-1000.0,0.00049561,10]
[377188560,1754274648064,-1000.0,0.00049561,10]
[377188561,1754274648074,-1000.0,0.00049561,10]
[377188562,1754274648082,-1000.0,0.00049561,10]
[377188563,1754274648092,-1000.0,0.00049561,10]
[377188564,1754274648101,-477.46998087,0.00049561,10]
[377188565,1754274648111,-151.0,0.00049561,120]
[377188566,1754274648121,-500.0,0.00049589,120]
[377188567,1754274648130,-199.97295317,0.00049589,120]
[377188568,1754274648139,-200.29264502,0.00049589,120]
[377188569,1754274648149,-151.0,0.00049589,120]
[377188570,1754274648158,-500.0,0.00049589,120]
[377188571,1754274648167,-151.0,0.00049589,120]
[377188572,1754274648176,-462.06423606,0.00049589,120]
[377188573,1754274648187,-460.0,0.00049589,120]
[377188574,1754274648196,-460.0,0.00049589,120]
[377188575,1754274648205,-460.0,0.00049589,120]
[377188576,1754274648215,-481.58022864,0.00049589,120]
[377188577,1754274648224,-461.58329402,0.00049589,120]
[377188578,1754274648233,-461.85439765,0.00049589,120]
[377188579,1754274648242,-460.0,0.00049589,120]
[377188580,1754274648251,-460.0,0.00049589,120]
[377188581,1754274648260,-460.0,0.00049589,120]
[377188582,1754274648270,-460.0,0.00049589,120]
[377188583,1754274648364,-460.0,0.00049589,120]
[377188584,1754274648373,-460.0,0.00049589,120]
[377188585,1754274648383,-460.0,0.00049589,120]
[377188586,1754274648392,-495.84729481,0.00049589,120]
[377188587,1754274648402,-460.0,0.00049589,120]
[377188588,1754274648412,-460.0,0.00049589,120]
[377188589,1754274648422,-460.0,0.00049589,120]
[377188590,1754274648433,-464.86055573,0.00049589,120]
[377188591,1754274648443,-537.22434244,0.00049589,120]
[377188592,1754274648453,-419.19100219,0.00049589,120]
[377188593,1754274648462,-817.04,0.00049589,120]
[377188594,1754274648471,-460.0,0.00049589,120]
[377188595,1754274648481,-460.0,0.00049589,120]
[377188596,1754274648490,-460.0,0.00049589,120]
[377188597,1754274648500,-460.0,0.00049589,120]
[377188598,1754274648509,-804.33,0.00049589,120]
[377188599,1754274648519,-460.0,0.00049589,120]
[377188600,1754274648528,-460.0,0.00049589,120]
[377188601,1754274648538,-463.67301506,0.00049589,120]
[377188602,1754274648547,-460.0,0.00049589,120]
[377188603,1754274648556,-460.0,0.00049589,120]
[377188604,1754274648565,-460.0,0.00049589,120]
[377188605,1754274648574,-460.0,0.00049589,120]
[377188606,1754274648583,-460.0,0.00049589,120]
[377188607,1754274648593,-509.52,0.00049589,120]
[377188608,1754274648602,-180.22914868,0.00049589,120]
[377188609,1754274648612,-387.81685737,0.00049589,120]
[377188610,1754274648621,-461.11661496,0.00049589,120]
[377188611,1754274648631,-460.0,0.00049589,120]
[377188612,1754274648641,-460.0,0.00049589,120]
[377188613,1754274648651,-460.0,0.00049589,120]
[377188614,1754274648660,-460.0,0.00049589,120]
[377188615,1754274648669,-460.0,0.00049589,120]
[377188616,1754274648679,-577.75,0.00049589,120]
[377188617,1754274648689,-463.7454622,0.00049589,120]
[377188618,1754274648698,-349.64422867,0.00049589,120]
[377188619,1754274648708,-460.0,0.00049589,120]
[377188620,1754274648717,-460.0,0.00049589,120]
[377188621,1754274648727,-379.16261929,0.00049589,120]
[377188622,1754274648737,-460.0,0.00049589,120]
[377188623,1754274648747,-460.0,0.00049589,120]
[377188624,1754274648756,-1153.9,0.00049589,120]
[377188625,1754274648766,-461.6433624,0.00049589,120]
[377188626,1754274648776,-460.0,0.00049589,120]
[377188627,1754274648785,-460.0,0.00049589,120]
[377188628,1754274648795,-460.0,0.00049589,120]
[377188629,1754274648804,-573.75347117,0.00049589,120]
[377188630,1754274648813,-1215.29,0.00049589,120]
[377188631,1754274648826,-460.0,0.00049589,120]
[377188632,1754274648835,-460.0,0.00049589,120]
[377188633,1754274648845,-460.0,0.00049589,120]
[377188634,1754274648854,-460.0,0.00049589,120]
[377188635,1754274648864,-460.0,0.00049589,120]
[377188636,1754274648873,-460.0,0.00049589,120]
[377188637,1754274648883,-460.0,0.00049589,120]
[377188638,1754274648892,-460.0,0.00049589,120]
[377188639,1754274648902,-463.6596394,0.00049589,120]
[377188640,1754274648912,-462.06511446,0.00049589,120]
[377188641,1754274648921,-460.0,0.00049589,120]
[377188642,1754274648932,-468.01,0.00049589,120]
[377188643,1754274648941,-826.09,0.00049589,120]
[377188644,1754274648951,-460.0,0.00049589,120]
[377188645,1754274648961,-460.0,0.00049589,120]
[377188646,1754274648971,-460.0,0.00049589,120]
[377188647,1754274648981,-2479.48,0.00049589,120]
[377188648,1754274648992,-460.0,0.00049589,120]
[377188649,1754274649002,-460.0,0.00049589,120]
[377188650,1754274649015,-460.0,0.00049589,120]
[377188651,1754274649024,-1065.81,0.00049589,120]
[377188652,1754274649033,-460.0,0.00049589,120]
[377188653,1754274649043,-609.99,0.00049589,120]
[377188654,1754274649052,-460.0,0.00049589,120]
[377188655,1754274649061,-460.0,0.00049589,120]
[377188656,1754274649070,-460.0,0.00049589,120]
[377188657,1754274649080,-940.79,0.00049589,120]
[377188658,1754274649090,-460.0,0.00049589,120]
[377188659,1754274649100,-460.0,0.00049589,120]
[377188660,1754274649110,-460.0,0.00049589,120]
[377188661,1754274649120,-460.0,0.00049589,120]
[377188662,1754274649129,-522.8037529,0.00049589,120]
[377188663,1754274649138,-460.0,0.00049589,120]
[377188664,1754274649147,-460.0,0.00049589,120]
[377188665,1754274649156,-725.13,0.00049589,120]
[377188666,1754274649165,-460.0,0.00049589,120]
[377188667,1754274649175,-237.00439927,0.00049589,120]
[377188668,1754274649184,-460.0,0.00049589,120]
[377188669,1754274649194,-1266.59,0.00049589,120]
[377188670,1754274649203,-460.0,0.00049589,120]
[377188671,1754274649212,-460.0,0.00049589,120]
[377188672,1754274649221,-1011.26,0.00049589,120]
[377188673,1754274649230,-460.0,0.00049589,120]
[377188674,1754274649239,-460.0,0.00049589,120]
[377188675,1754274649248,-493.66,0.00049589,120]
[377188676,1754274649258,-5000.08583698,0.00049589,120]
[377188677,1754274649267,-460.0,0.00049589,120]
[377188678,1754274649276,-460.0,0.00049589,120]
[377188679,1754274649286,-460.0,0.00049589,120]
[377188680,1754274649295,-431.46562204,0.00049589,120]
[377188681,1754274649304,-475.73,0.00049589,120]
[377188682,1754274649313,-554.5046931,0.00049589,120]
[377188683,1754274649323,-460.0,0.00049589,120]
[377188684,1754274649332,-460.0,0.00049589,120]
[377188685,1754274649341,-441.40709837,0.00049589,120]
[377188686,1754274649351,-460.0,0.00049589,7]
[377188687,1754274649360,-481.66,0.00049589,120]
[377188688,1754274649369,-460.0,0.00049589,120]
[377188689,1754274649383,-1014.75,0.00049589,120]
[377188690,1754274649392,-460.0,0.00049589,7]
[377188691,1754274649402,-463.30665007,0.00049589,120]
[377188692,1754274649411,-471.50706535,0.00049589,120]
[377188693,1754274649420,-1301.21,0.00049589,120]
[377188694,1754274649429,-460.0,0.00049589,120]
[377188695,1754274649439,-460.0,0.00049589,120]
[377188696,1754274649448,-460.0,0.00049589,120]
[377188697,1754274649458,-580.29,0.00049589,3]
[377188698,1754274649467,-460.0,0.00049589,120]
[377188699,1754274649476,-1031.49,0.00049589,120]
[377188700,1754274649485,-460.0,0.00049589,120]
[377188701,1754274649494,-793.62,0.00049589,120]
[377188702,1754274649503,-837.05,0.00049589,120]
[377188703,1754274649512,-460.0,0.00049589,120]
[377188704,1754274649521,-460.0,0.00049589,120]
[377188705,1754274649530,-527.75,0.00049589,120]
[377188706,1754274649539,-460.0,0.00049589,120]
[377188707,1754274649548,-1947.03,0.00049589,120]
[377188708,1754274649558,-460.0,0.00049589,120]
[377188709,1754274649567,-460.0,0.00049589,120]
[377188710,1754274649576,-1081.5,0.00049589,120]
[377188711,1754274649586,-460.0,0.00049589,120]
[377188712,1754274649594,-484.96,0.00049589,120]
[377188713,1754274649603,-460.0,0.00049589,120]
[377188714,1754274649612,-460.0,0.00049589,120]
[377188715,1754274649621,-460.0,0.00049589,120]
[377188716,1754274649630,-460.0,0.00049589,120]
[377188717,1754274649639,-633.05,0.00049589,120]
[377188718,1754274649649,-460.0,0.00049589,120]
[377188719,1754274649658,-460.0,0.00049589,120]
[377188720,1754274649667,-460.0,0.00049589,120]
[377188721,1754274649754,-460.0,0.00049589,120]
[377188722,1754274649765,-460.0,0.00049589,120]
[377188723,1754274649775,-460.0,0.00049589,120]
[377188724,1754274649784,-466.81007712,0.00049589,120]
[377188725,1754274649793,-1703.37,0.00049589,120]
[377188726,1754274649803,-775.27,0.00049589,120]
[377188727,1754274649813,-460.0,0.00049589,120]
[377188728,1754274649825,-679.19,0.00049589,120]
[377188729,1754274649834,-477.37308389,0.00049589,120]
[377188730,1754274649844,-460.0,0.00049589,120]
[377188731,1754274649853,-592.63,0.00049589,120]
[377188732,1754274649863,-1000.0,0.00049589,120]
[377188733,1754274649873,-897.25,0.00049589,120]
[377188734,1754274649882,-460.0,0.00049589,120]
[377188735,1754274649893,-939.56,0.00049589,120]
[377188736,1754274649905,-326.2130749,0.00049589,120]
[377188737,1754274649915,-460.0,0.00049589,120]
[377188738,1754274649925,-571.9,0.00049589,120]
[377188739,1754274649934,-460.0,0.00049589,120]
[377188740,1754274649943,-460.0,0.00049589,120]
[377188741,1754274649952,-436.26755935,0.00049589,120]
[377188742,1754274649961,-460.0,0.00049589,120]
[377188743,1754274649970,-460.0,0.00049589,120]
[377188744,1754274649980,-6249.43,0.00049589,120]
[377188745,1754274649988,-460.0,0.00049589,120]
[377188746,1754274649997,-460.0,0.00049589,120]
[377188747,1754274650006,-460.0,0.00049589,120]
[377188748,1754274650015,-460.0,0.00049589,120]
[377188749,1754274650024,-464.13,0.00049589,120]
[377188750,1754274650034,-460.0,0.00049589,120]
[377188751,1754274650043,-465.56058868,0.00049589,120]
[377188752,1754274650052,-254.40346904,0.00049589,120]
[377188753,1754274650061,-460.0,0.00049589,120]
[377188754,1754274650070,-460.0,0.00049589,120]
[377188755,1754274650078,-460.0,0.00049589,120]
[377188756,1754274650088,-352.83236092,0.00049589,120]
[377188757,1754274650097,-460.0,0.00049589,120]
[377188758,1754274650107,-460.0,0.00049589,120]
[377188759,1754274650116,-368.83927821,0.00049589,120]
[377188760,1754274650125,-460.0,0.00049589,120]
[377188761,1754274650134,-545.56,0.00049589,120]
[377188762,1754274650143,-792.77,0.00049589,120]
[377188763,1754274650152,-460.0,0.00049589,120]
[377188764,1754274650161,-460.0,0.00049589,120]
[377188765,1754274650170,-460.0,0.00049589,120]
[377188766,1754274650179,-460.0,0.00049589,120]
[377188767,1754274650189,-460.0,0.00049589,20]
[377188768,1754274650198,-460.0,0.00049589,120]
[377188769,1754274650207,-478.14429707,0.00049589,120]
[377188770,1754274650216,-834.68,0.00049589,120]
[377188771,1754274650225,-460.0,0.00049589,120]
[377188772,1754274650234,-553.51,0.00049589,120]
[377188773,1754274650243,-730.85,0.00049589,120]
[377188774,1754274650252,-460.0,0.00049589,120]
[377188775,1754274650261,-460.0,0.00049589,120]
[377188776,1754274650271,-460.0,0.00049589,120]
[377188777,1754274650280,-460.0,0.00049589,120]
[377188778,1754274650289,-460.0,0.00049589,120]
[377188779,1754274650298,-833.51,0.00049589,120]
[377188780,1754274650308,-460.0,0.00049589,120]
[377188781,1754274650319,-460.0,0.00049589,120]
[377188782,1754274650328,-460.0,0.00049589,120]
[377188783,1754274650337,-460.0,0.00049589,120]
[377188784,1754274650346,-472.19115773,0.00049589,120]
[377188785,1754274650357,-460.0,0.00049589,120]
[377188786,1754274650371,-460.0,0.00049589,120]
[377188787,1754274650380,-715.87,0.00049589,120]
[377188788,1754274650389,-500.0,0.00049589,120]
[377188789,1754274650398,-460.0,0.00049589,120]
[377188790,1754274650407,-643.09,0.00049589,120]
[377188791,1754274650417,-460.0,0.00049589,120]
[377188792,1754274650425,-460.0,0.00049589,120]
[377188793,1754274650435,-359.71,0.00049589,30]
[377188794,1754274650444,-460.0,0.00049589,120]
[377188795,1754274650453,-460.0,0.00049589,120]
[377188796,1754274650462,-568.52,0.00049589,120]
[377188797,1754274650472,-460.0,0.00049589,120]
[377188798,1754274650481,-460.0,0.00049589,120]
[377188799,1754274650490,-704.7,0.00049589,120]
[377188800,1754274650499,-151.0,0.00049589,120]
[377188801,1754274650509,-578.93,0.00049589,120]
[377188802,1754274650518,-462.28549201,0.00049589,120]
[377188803,1754274650527,-460.0,0.00049589,120]
[377188804,1754274650536,-698.65,0.00049589,120]
[377188805,1754274650546,-460.0,0.00049589,120]
[377188806,1754274650555,-460.0,0.00049589,120]
[377188807,1754274650564,-460.0,0.00049589,120]
[377188808,1754274650575,-683.03,0.00049589,30]
[377188809,1754274650584,-671.39,0.00049589,120]
[377188810,1754274650593,-460.0,0.00049589,120]
[377188811,1754274650602,-462.82856911,0.00049589,120]
[377188812,1754274650611,-460.0,0.00049589,120]
[377188813,1754274650620,-460.0,0.00049589,120]
[377188814,1754274650629,-460.0,0.00049589,120]
[377188815,1754274650638,-5406.25,0.00049589,120]
[377188816,1754274650648,-703.19,0.00049589,120]
[377188817,1754274650657,-460.0,0.00049589,120]
[377188818,1754274650666,-460.0,0.00049589,120]
[377188819,1754274650675,-1680.47,0.00049589,120]
[377188820,1754274650686,-14937.12344712,0.00049589,120]
[377188821,1754274650952,-1365.64655288,0.00049589,120]
[377188822,1754274650962,-460.0,0.00049589,120]
[377188823,1754274650971,-460.0,0.00049589,120]
[377188824,1754274650980,-460.0,0.00049589,120]
[377188825,1754274650990,-460.0,0.00049589,120]
[377188826,1754274650999,-460.0,0.00049589,120]
[377188827,1754274651008,-460.0,0.00049589,120]
[377188828,1754274651017,-460.0,0.00049589,120]
[377188829,1754274651026,-460.0,0.00049589,120]
[377188830,1754274651035,-1105.32,0.00049589,120]
[377188831,1754274651044,-460.0,0.00049589,120]
[377188832,1754274651054,-17107.65,0.00049589,120]
[377188833,1754274651064,-1947.01,0.00049589,120]
[377188834,1754274651074,-460.0,0.00049589,120]
[377188835,1754274651084,-411.42310179,0.00049589,120]
[377188836,1754274651093,-460.0,0.00049589,120]
[377188837,1754274651104,-460.0,0.00049589,120]
[377188838,1754274651114,-530.04,0.00049589,120]
[377188839,1754274651124,-460.96812017,0.00049589,120]
[377188840,1754274651134,-463.65191568,0.00049589,120]
[377188841,1754274651143,-460.0,0.00049589,120]
[377188842,1754274651153,-1895.09,0.00049589,120]
[377188843,1754274651163,-937.89,0.00049589,120]
[377188844,1754274651173,-467.50197866,0.00049589,120]
[377188845,1754274651184,-460.0,0.00049589,120]
[377188846,1754274651203,-478.71,0.00049589,120]
[377188847,1754274651214,-1401.02,0.00049589,120]
[377188848,1754274651226,-460.0,0.00049589,120]
[377188849,1754274651237,-343.668564,0.00049589,120]
[377188850,1754274651247,-460.0,0.00049589,120]
[377188851,1754274651257,-516.13488023,0.00049589,120]
[377188852,1754274651267,-1140.61,0.00049589,120]
[377188853,1754274651278,-12263.01,0.00049589,120]
[377188854,1754274651288,-1501.2,0.00049589,120]
[377188855,1754274651298,-460.0,0.00049589,120]
[377188856,1754274651311,-480.62445239,0.00049589,120]
[377188857,1754274651320,-500.0,0.00049589,14]
[377188858,1754274651330,-460.0,0.00049589,120]
[377188859,1754274651339,-460.0,0.00049589,120]
[377188860,1754274651349,-1083.04,0.00049589,120]
[377188861,1754274651359,-460.0,0.00049589,120]
[377188862,1754274651369,-646.51,0.00049589,120]
[377188863,1754274651379,-460.0,0.00049589,120]
[377188864,1754274651389,-1163.5,0.00049589,120]
[377188865,1754274651399,-460.0,0.00049589,120]
[377188866,1754274651409,-460.0,0.00049589,120]
[377188867,1754274651422,-723.88,0.00049589,120]
[377188868,1754274651448,-460.0,0.00049589,120]
[377188869,1754274651464,-1629.83,0.00049589,120]
[377188870,1754274651483,-460.0,0.00049589,120]
[377188871,1754274651503,-460.0,0.00049589,120]
[377188872,1754274651522,-460.0,0.00049589,120]
[377188873,1754274651540,-460.0,0.00049589,120]
[377188874,1754274651557,-446.21170823,0.00049589,120]
[377188875,1754274651571,-460.0,0.00049589,120]
[377188876,1754274651589,-783.13,0.00049589,120]
[377188877,1754274651607,-1708.96,0.00049589,120]
[377188878,1754274651626,-709.16,0.00049589,120]
[377188879,1754274651638,-1374.15,0.00049589,120]
[377188880,1754274651657,-543.48,0.00049589,120]
[377188881,1754274651670,-1023.57,0.00049589,60]
[377188882,1754274651687,-528.16,0.00049589,120]
[377188883,1754274651701,-500.0,0.00049589,120]
[377188884,1754274651719,-1295.2,0.00049589,120]
[377188885,1754274651734,-898.31,0.00049589,120]
[377188886,1754274651748,-3266.65,0.00049589,120]
[377188887,1754274651762,-460.0,0.00049589,120]
[377188888,1754274651776,-487.14,0.00049589,120]
[377188889,1754274651790,-1575.77,0.00049589,120]
[377188890,1754274651804,-7517.95,0.00049589,120]
[377188891,1754274651818,-460.0,0.00049589,120]
[377188892,1754274651836,-1927.72,0.00049589,120]
[377188893,1754274651851,-482.08,0.00049589,120]
[377188894,1754274651865,-460.0,0.00049589,120]
[377188895,1754274651879,-1296.46,0.00049589,120]
[377188896,1754274651894,-2834.93,0.00049589,120]
[377188897,1754274651909,-460.0,0.00049589,120]
[377188898,1754274651924,-460.0,0.00049589,120]
[377188899,1754274651940,-7024.71,0.00049589,120]
[377188900,1754274651954,-460.0,0.00049589,120]
[377188901,1754274651968,-460.0,0.00049589,120]
[377188902,1754274651983,-460.0,0.00049589,120]
[377188903,1754274651997,-759.86,0.00049589,120]
[377188904,1754274652011,-460.0,0.00049589,120]
[377188905,1754274652026,-561.8,0.00049589,120]
[377188906,1754274652040,-701.79,0.00049589,120]
[377188907,1754274652051,-460.0,0.00049589,120]
[377188908,1754274652062,-460.0,0.00049589,120]
[377188909,1754274652071,-551.04,0.00049589,120]
[377188910,1754274652081,-460.0,0.00049589,120]
[377188911,1754274652090,-460.0,0.00049589,120]
[377188912,1754274652099,-460.0,0.00049589,120]
[377188913,1754274652108,-460.0,0.00049589,120]
[377188914,1754274652118,-1265.72,0.00049589,120]
[377188915,1754274652127,-2003.99,0.00049589,120]
[377188916,1754274652136,-460.0,0.00049589,120]
[377188917,1754274652145,-2706.73,0.00049589,120]
[377188918,1754274652155,-460.0,0.00049589,120]
[377188919,1754274652164,-1239.36,0.00049589,120]
[377188920,1754274652173,-601.54,0.00049589,120]
[377188921,1754274652182,-3904.5,0.00049589,120]
[377188922,1754274652194,-460.0,0.00049589,120]
[377188923,1754274652204,-826.57,0.00049589,120]
[377188924,1754274652213,-465.54893334,0.00049589,120]
[377188925,1754274652222,-460.0,0.00049589,120]
[377188926,1754274652432,-714.96,0.00049589,120]
[377188927,1754274652453,-1358.07,0.00049589,21]
[377188928,1754274652468,-780.86,0.00049589,120]
[377188929,1754274652477,-676.21,0.00049589,120]
[377188930,1754274652487,-5597.77,0.00049589,120]
[377188931,1754274652496,-238.30607938,0.00049589,120]
[377188932,1754274652505,-460.0,0.00049589,120]
[377188933,1754274652514,-460.0,0.00049589,120]
[377188934,1754274652523,-460.0,0.00049589,120]
[377188935,1754274652532,-705.52,0.00049589,120]
[377188936,1754274652541,-794.92,0.00049589,120]
[377188937,1754274652551,-1663.35,0.00049589,120]
[377188938,1754274652568,-2532.83,0.00049589,120]
[377188939,1754274652578,-1445.26,0.00049589,120]
[377188940,1754274652587,-6867.73,0.00049589,120]
[377188941,1754274652596,-463.70608863,0.00049589,120]
[377188942,1754274652605,-460.0,0.00049589,120]
[377188943,1754274652614,-463.06420409,0.00049589,120]
[377188944,1754274652623,-460.0,0.00049589,120]
[377188945,1754274652633,-460.0,0.00049589,120]
[377188946,1754274652642,-886.63,0.00049589,120]
[377188947,1754274652652,-628.33,0.00049589,120]
[377188948,1754274652661,-640.61,0.00049589,120]
[377188949,1754274652670,-460.0,0.00049589,120]
[377188950,1754274652680,-866.15,0.00049589,120]
[377188951,1754274652691,-1282.94,0.00049589,120]
[377188952,1754274652700,-1696.41,0.00049589,120]
[377188953,1754274652709,-561.61352261,0.00049589,120]
[377188954,1754274652718,-460.0,0.00049589,120]
[377188955,1754274652728,-460.0,0.00049589,120]
[377188956,1754274652737,-460.0,0.00049589,120]
[377188957,1754274652746,-712.19,0.00049589,120]
[377188958,1754274652755,-675.43,0.00049589,120]
[377188959,1754274652765,-460.0,0.00049589,120]
[377188960,1754274652774,-460.0,0.00049589,120]
[377188961,1754274652784,-1185.52,0.00049589,120]
[377188962,1754274652793,-460.0,0.00049589,120]
[377188963,1754274652802,-3656.13,0.00049589,120]
[377188964,1754274652814,-1081.86,0.00049589,120]
[377188965,1754274652826,-460.0,0.00049589,120]
[377188966,1754274652835,-463.99405965,0.00049589,120]
[377188967,1754274652844,-710.11,0.00049589,120]
[377188968,1754274652853,-460.0,0.00049589,120]
[377188969,1754274652863,-589.66,0.00049589,120]
[377188970,1754274652872,-1755.55,0.00049589,30]
[377188971,1754274652881,-1432.89,0.00049589,120]
[377188972,1754274652890,-460.0,0.00049589,120]
[377188973,1754274652900,-460.0,0.00049589,120]
[377188974,1754274652909,-1039.74,0.00049589,120]